[Event "*** Titled Tuesday Blitz"]
[Site "Chess.com"]
[Date "2019.07.02"]
[Round "7"]
[White "Gabix_94"]
[Black "KamilPlichta"]
[Result "0-1"]
[WhiteElo "2683"]
[BlackElo "2795"]
[TimeControl "180+2"]
[EndTime "14:37:30 PDT"]
[Termination "KamilPlichta won on time"]

1. Nf3 {[%clk 0:03:01.9]} 1... g6 {[%clk 0:03:01.4]} 2. d4 {[%clk 0:03:02.1]}
2... Bg7 {[%clk 0:03:02.7]} 3. e4 {[%clk 0:03:03.2]} 3... c5 {[%clk 0:03:03.5]}
4. dxc5 {[%clk 0:03:03.5]} 4... Qa5+ {[%clk 0:03:04.4]} 5. c3 {[%clk 0:03:05]}
5... Qxc5 {[%clk 0:03:05.7]} 6. Na3 {[%clk 0:03:06.7]} 6... Nf6 {[%clk
0:03:07.2]} 7. Nb5 {[%clk 0:02:59]} 7... b6 {[%clk 0:03:08.3]} 8. Be3 {[%clk
0:02:56.4]} 8... Qc6 {[%clk 0:03:09.2]} 9. Nfd4 {[%clk 0:02:53.8]} 9... Qb7
{[%clk 0:03:10]} 10. e5 {[%clk 0:02:44.8]} 10... Nd5 {[%clk 0:03:04.5]} 11. Bc4
{[%clk 0:02:03.1]} 11... Nxe3 {[%clk 0:03:02.1]} 12. fxe3 {[%clk 0:02:01]} 12...
O-O {[%clk 0:02:42.3]} 13. O-O {[%clk 0:01:56.9]} 13... a6 {[%clk 0:02:35.1]}
14. Bxf7+ {[%clk 0:01:45.5]} 14... Rxf7 {[%clk 0:02:30.9]} 15. Rxf7 {[%clk
0:01:35.1]} 15... Kxf7 {[%clk 0:02:03.6]} 16. Qb3+ {[%clk 0:01:28.4]} 16... d5
{[%clk 0:02:04.6]} 17. exd6+ {[%clk 0:01:21.9]} 17... e6 {[%clk 0:02:05.6]} 18.
Rf1+ {[%clk 0:01:22.4]} 18... Bf6 {[%clk 0:01:48.3]} 19. Nc7 {[%clk 0:01:13]}
19... Qe4 {[%clk 0:01:40.5]} 20. Nxa8 {[%clk 0:01:10.5]} 20... Bb7 {[%clk
0:01:39]} 21. Nf3 {[%clk 0:00:48.1]} 21... Qxe3+ {[%clk 0:01:35.9]} 22. Kh1
{[%clk 0:00:49.2]} 22... Bxa8 {[%clk 0:01:28.5]} 23. Re1 {[%clk 0:00:42.9]}
23... Qd3 {[%clk 0:01:13]} 24. Qxe6+ {[%clk 0:00:43.4]} 24... Kg7 {[%clk
0:01:14.1]} 25. Ne5 {[%clk 0:00:35.5]} 25... Qd2 {[%clk 0:00:46.5]} 26. Qf7+
{[%clk 0:00:16.5]} 26... Kh6 {[%clk 0:00:47.6]} 27. Ng4+ {[%clk 0:00:17.9]}
27... Kg5 {[%clk 0:00:49.2]} 28. Qxf6+ {[%clk 0:00:18.1]} 28... Kxg4 {[%clk
0:00:50.8]} 29. h3+ {[%clk 0:00:18.9]} 29... Kh5 {[%clk 0:00:51.9]} 30. Rg1
{[%clk 0:00:17.9]} 30... Nd7 {[%clk 0:00:47.3]} 31. Qg7 {[%clk 0:00:19.3]} 31...
Qxd6 {[%clk 0:00:21.7]} 32. Qxh7+ {[%clk 0:00:20.6]} 32... Kg5 {[%clk
0:00:23.1]} 33. Qh8 {[%clk 0:00:22.5]} 33... Be4 {[%clk 0:00:16.9]} 34. Qd8+
{[%clk 0:00:23]} 34... Kf4 {[%clk 0:00:08.2]} 35. Qh4+ {[%clk 0:00:22.9]} 35...
Ke5 {[%clk 0:00:09.6]} 36. Re1 {[%clk 0:00:23.6]} 36... Nf6 {[%clk 0:00:09]} 37.
Qg5+ {[%clk 0:00:22.6]} 37... Ke6 {[%clk 0:00:08.7]} 38. Qxg6 {[%clk 0:00:23.9]}
38... Qe5 {[%clk 0:00:07.1]} 39. Rxe4 {[%clk 0:00:08]} 39... Qxe4 {[%clk
0:00:09]} 40. Qg3 {[%clk 0:00:09.1]} 40... Qb1+ {[%clk 0:00:09.4]} 41. Kh2
{[%clk 0:00:10.6]} 41... Qxb2 {[%clk 0:00:10.6]} 42. Qe3+ {[%clk 0:00:11.8]}
42... Kf7 {[%clk 0:00:11.1]} 43. a4 {[%clk 0:00:12.7]} 43... Qb3 {[%clk
0:00:11.5]} 44. g4 {[%clk 0:00:12.7]} 44... Qe6 {[%clk 0:00:06.6]} 45. Qd4
{[%clk 0:00:12.7]} 45... Qe2+ {[%clk 0:00:06.7]} 46. Kg3 {[%clk 0:00:13.5]}
46... Ne4+ {[%clk 0:00:08.2]} 47. Kf4 {[%clk 0:00:14.4]} 47... Nf6 {[%clk
0:00:09.6]} 48. Kg3 {[%clk 0:00:13.6]} 48... b5 {[%clk 0:00:09.5]} 49. axb5
{[%clk 0:00:14.4]} 49... axb5 {[%clk 0:00:10.7]} 50. g5 {[%clk 0:00:15.9]} 50...
Ne8 {[%clk 0:00:09.4]} 51. Qd5+ {[%clk 0:00:15.7]} 51... Kf8 {[%clk 0:00:09.3]}
52. Qxb5 {[%clk 0:00:17]} 52... Qxb5 {[%clk 0:00:09]} 0-1

[Event "*** Titled Tuesday Blitz"]
[Site "Chess.com"]
[Date "2019.07.02"]
[Round "7"]
[White "novocane"]
[Black "Spring199"]
[Result "1-0"]
[WhiteElo "2254"]
[BlackElo "2186"]
[TimeControl "180+2"]
[EndTime "14:37:30 PDT"]
[Termination "novocane won by checkmate"]

1. d4 {[%clk 0:03:01.4]} 1... Nf6 {[%clk 0:02:59.7]} 2. c4 {[%clk 0:03:02.5]}
2... e6 {[%clk 0:03:00.3]} 3. Nc3 {[%clk 0:03:03.9]} 3... Bb4 {[%clk 0:03:00.4]}
4. e3 {[%clk 0:03:05.2]} 4... d5 {[%clk 0:02:59.7]} 5. a3 {[%clk 0:03:03.2]}
5... Bxc3+ {[%clk 0:02:59.8]} 6. bxc3 {[%clk 0:03:05]} 6... O-O {[%clk
0:03:01.5]} 7. Nf3 {[%clk 0:03:05.6]} 7... c5 {[%clk 0:03:01.4]} 8. cxd5 {[%clk
0:03:03.9]} 8... exd5 {[%clk 0:03:01]} 9. Bd3 {[%clk 0:03:03.9]} 9... b6 {[%clk
0:03:01.8]} 10. Qe2 {[%clk 0:03:01.6]} 10... Ne4 {[%clk 0:02:55.3]} 11. Bxe4
{[%clk 0:02:36.1]} 11... dxe4 {[%clk 0:02:55.4]} 12. Nd2 {[%clk 0:02:37.2]}
12... cxd4 {[%clk 0:02:51.8]} 13. cxd4 {[%clk 0:02:28.6]} 13... Ba6 {[%clk
0:02:51]} 14. Qh5 {[%clk 0:02:13.5]} 14... Nc6 {[%clk 0:02:35.8]} 15. Bb2 {[%clk
0:02:10]} 15... Qe7 {[%clk 0:02:13]} 16. d5 {[%clk 0:01:52.4]} 16... Na5 {[%clk
0:02:10.4]} 17. Qe5 {[%clk 0:01:37.6]} 17... Qxe5 {[%clk 0:02:00.3]} 18. Bxe5
{[%clk 0:01:39.5]} 18... Rfe8 {[%clk 0:01:57.2]} 19. Bg3 {[%clk 0:01:36.8]}
19... Rad8 {[%clk 0:01:54.8]} 20. O-O-O {[%clk 0:01:23.2]} 20... Rxd5 {[%clk
0:01:51]} 21. Nxe4 {[%clk 0:01:24.9]} 21... Rc8+ {[%clk 0:01:22.9]} 22. Kb2
{[%clk 0:00:35.8]} 22... Rb5+ {[%clk 0:01:23]} 23. Ka1 {[%clk 0:00:14.8]} 23...
Nb3+ {[%clk 0:01:22.6]} 24. Ka2 {[%clk 0:00:13.4]} 24... Rc2+ {[%clk 0:01:23.1]}
25. Kb1 {[%clk 0:00:14.8]} 25... Rc8 {[%clk 0:00:46.8]} 26. Nd6 {[%clk
0:00:15.8]} 26... Nd2+ {[%clk 0:00:44.2]} 27. Ka1 {[%clk 0:00:10.3]} 27... Nb3+
{[%clk 0:00:44.4]} 28. Kb2 {[%clk 0:00:09.7]} 28... Nc5+ {[%clk 0:00:33.5]} 29.
Nxb5 {[%clk 0:00:10.6]} 29... Bxb5 {[%clk 0:00:34]} 30. Rd2 {[%clk 0:00:07.8]}
30... Na4+ {[%clk 0:00:33.9]} 31. Ka1 {[%clk 0:00:09]} 31... h5 {[%clk
0:00:32.5]} 32. Rhd1 {[%clk 0:00:09.4]} 32... Kh7 {[%clk 0:00:32.2]} 33. Bd6
{[%clk 0:00:09.9]} 33... Rc3 {[%clk 0:00:31.8]} 34. Bb4 {[%clk 0:00:10.5]} 34...
Rc7 {[%clk 0:00:28.9]} 35. Kb1 {[%clk 0:00:11.4]} 35... a5 {[%clk 0:00:29.5]}
36. Bd6 {[%clk 0:00:10.3]} 36... Nc3+ {[%clk 0:00:23.1]} 37. Ka1 {[%clk
0:00:11.2]} 37... Rc4 {[%clk 0:00:20.2]} 38. Rc1 {[%clk 0:00:10.4]} 38... Ba4
{[%clk 0:00:20.7]} 39. Rd3 {[%clk 0:00:10.6]} 39... Nb5 {[%clk 0:00:12]} 40.
Rxc4 {[%clk 0:00:11.4]} 40... Nxd6 {[%clk 0:00:11.8]} 41. Rxd6 {[%clk
0:00:12.6]} 41... b5 {[%clk 0:00:12.7]} 42. Rxa4 {[%clk 0:00:13.8]} 42... b4
{[%clk 0:00:14.6]} 43. axb4 {[%clk 0:00:14.9]} 43... axb4 {[%clk 0:00:15.2]} 44.
Rxb4 {[%clk 0:00:16.2]} 44... g6 {[%clk 0:00:14.4]} 45. Rd7 {[%clk 0:00:17.1]}
45... Kg7 {[%clk 0:00:16.3]} 46. Rbb7 {[%clk 0:00:18.1]} 46... g5 {[%clk
0:00:18.2]} 47. Rxf7+ {[%clk 0:00:19.3]} 47... Kg6 {[%clk 0:00:19.1]} 48. Rfc7
{[%clk 0:00:20]} 48... g4 {[%clk 0:00:20]} 49. h4 {[%clk 0:00:20.1]} 49... gxh3
{[%clk 0:00:20]} 50. gxh3 {[%clk 0:00:21.5]} 50... h4 {[%clk 0:00:21]} 51. Rc5
{[%clk 0:00:21.3]} 51... Kf6 {[%clk 0:00:21.4]} 52. Rb6+ {[%clk 0:00:22.5]}
52... Ke7 {[%clk 0:00:23.1]} 53. Rc7+ {[%clk 0:00:23.8]} 53... Kd8 {[%clk
0:00:25]} 54. Rh7 {[%clk 0:00:24.7]} 54... Kc8 {[%clk 0:00:25.6]} 55. Rg6 {[%clk
0:00:25]} 55... Kb8 {[%clk 0:00:26.1]} 56. Rg8# {[%clk 0:00:26.9]} 1-0

[Event "*** Titled Tuesday Blitz"]
[Site "Chess.com"]
[Date "2019.07.02"]
[Round "7"]
[White "WildTricks"]
[Black "FrenchMonster2002"]
[Result "1-0"]
[WhiteElo "2313"]
[BlackElo "2429"]
[TimeControl "180+2"]
[EndTime "14:37:33 PDT"]
[Termination "WildTricks won by checkmate"]

1. e4 {[%clk 0:03:01.9]} 1... c5 {[%clk 0:03:01.2]} 2. Nf3 {[%clk 0:03:02.7]}
2... Nc6 {[%clk 0:03:02.6]} 3. d4 {[%clk 0:03:03.3]} 3... cxd4 {[%clk
0:03:04.5]} 4. Nxd4 {[%clk 0:03:05.2]} 4... e5 {[%clk 0:03:06.2]} 5. Nb5 {[%clk
0:03:05.3]} 5... d6 {[%clk 0:03:07.8]} 6. N1c3 {[%clk 0:03:04.7]} 6... a6 {[%clk
0:03:09.2]} 7. Bg5 {[%clk 0:03:05.8]} 7... Be7 {[%clk 0:03:11.1]} 8. Bxe7 {[%clk
0:03:05.6]} 8... Kxe7 {[%clk 0:02:43.1]} 9. Nd5+ {[%clk 0:03:01.9]} 9... Kf8
{[%clk 0:02:44.7]} 10. Ndc7 {[%clk 0:02:36.2]} 10... axb5 {[%clk 0:02:42.2]} 11.
Nxa8 {[%clk 0:02:34]} 11... Qa5+ {[%clk 0:02:43.8]} 12. Qd2 {[%clk 0:02:32.3]}
12... Qxa8 {[%clk 0:02:45.7]} 13. Qxd6+ {[%clk 0:02:32.9]} 13... Nge7 {[%clk
0:02:47]} 14. c3 {[%clk 0:02:21.5]} 14... Be6 {[%clk 0:02:21.1]} 15. Bxb5 {[%clk
0:02:20.3]} 15... Qd8 {[%clk 0:02:06.2]} 16. Qc5 {[%clk 0:02:07.2]} 16... Qc7
{[%clk 0:01:48.1]} 17. Rd1 {[%clk 0:01:56.6]} 17... g6 {[%clk 0:01:48.5]} 18.
Bxc6 {[%clk 0:01:36.6]} 18... bxc6 {[%clk 0:01:46.9]} 19. Rd6 {[%clk 0:01:35.8]}
19... Rg8 {[%clk 0:00:47.1]} 20. Qxe5 {[%clk 0:01:19.2]} 20... Qc8 {[%clk
0:00:29.2]} 21. O-O {[%clk 0:01:13]} 21... g5 {[%clk 0:00:27]} 22. Rfd1 {[%clk
0:01:11.3]} 22... Ke8 {[%clk 0:00:25.2]} 23. Qd4 {[%clk 0:00:59.9]} 23... Nd5
{[%clk 0:00:04.9]} 24. exd5 {[%clk 0:00:58.1]} 24... cxd5 {[%clk 0:00:06.8]} 25.
Qf6 {[%clk 0:00:47]} 25... Qc7 {[%clk 0:00:05.3]} 26. Rxe6+ {[%clk 0:00:35.1]}
26... fxe6 {[%clk 0:00:07.2]} 27. Qxe6+ {[%clk 0:00:36.9]} 27... Kf8 {[%clk
0:00:08.7]} 28. Rxd5 {[%clk 0:00:37.8]} 28... Rg6 {[%clk 0:00:06.4]} 29. Rf5+
{[%clk 0:00:28.9]} 29... Kg7 {[%clk 0:00:07.9]} 30. Qe5+ {[%clk 0:00:26.4]}
30... Qxe5 {[%clk 0:00:08.8]} 31. Rxe5 {[%clk 0:00:28.3]} 31... Rd6 {[%clk
0:00:09.6]} 32. Kf1 {[%clk 0:00:28.7]} 32... Rd1+ {[%clk 0:00:09.3]} 33. Ke2
{[%clk 0:00:29.1]} 33... Rb1 {[%clk 0:00:09.6]} 34. Rxg5+ {[%clk 0:00:27.8]}
34... Kf6 {[%clk 0:00:11]} 35. Rb5 {[%clk 0:00:29.5]} 35... Ke6 {[%clk
0:00:10.9]} 36. a4 {[%clk 0:00:30]} 36... Kd6 {[%clk 0:00:12.4]} 37. a5 {[%clk
0:00:29.6]} 37... Kc6 {[%clk 0:00:14]} 38. Rb6+ {[%clk 0:00:30.3]} 38... Kc5
{[%clk 0:00:15.7]} 39. b4+ {[%clk 0:00:31.4]} 39... Kc4 {[%clk 0:00:17]} 40. a6
{[%clk 0:00:32]} 40... Ra1 {[%clk 0:00:17.3]} 41. b5 {[%clk 0:00:30.5]} 41...
Kc5 {[%clk 0:00:14.7]} 42. Rb7 {[%clk 0:00:31]} 42... Ra2+ {[%clk 0:00:14.1]}
43. Ke3 {[%clk 0:00:31.3]} 43... h5 {[%clk 0:00:15.9]} 44. h4 {[%clk 0:00:30.5]}
44... Ra3 {[%clk 0:00:14.4]} 45. Ke4 {[%clk 0:00:29.3]} 45... Ra4+ {[%clk
0:00:15.2]} 46. Kf5 {[%clk 0:00:29.1]} 46... Kd6 {[%clk 0:00:10.4]} 47. a7
{[%clk 0:00:27.1]} 47... Ra5 {[%clk 0:00:08.7]} 48. Kg6 {[%clk 0:00:26.9]} 48...
Kc5 {[%clk 0:00:06.4]} 49. b6 {[%clk 0:00:27.4]} 49... Kc6 {[%clk 0:00:04.9]}
50. Rb8 {[%clk 0:00:26.4]} 50... Re5 {[%clk 0:00:02.3]} 51. a8=Q+ {[%clk
0:00:25.7]} 51... Kc5 {[%clk 0:00:04.2]} 52. Qa5+ {[%clk 0:00:25]} 52... Kd6
{[%clk 0:00:04.9]} 53. Rd8+ {[%clk 0:00:25.5]} 53... Ke7 {[%clk 0:00:06.2]} 54.
Qxe5+ {[%clk 0:00:25.7]} 54... Kxd8 {[%clk 0:00:07.8]} 55. Qc7+ {[%clk
0:00:25.9]} 55... Ke8 {[%clk 0:00:09.1]} 56. g4 {[%clk 0:00:26.1]} 56... hxg4
{[%clk 0:00:09.3]} 57. h5 {[%clk 0:00:24.6]} 57... g3 {[%clk 0:00:10.9]} 58. b7
{[%clk 0:00:22.4]} 58... g2 {[%clk 0:00:11.2]} 59. b8=R# {[%clk 0:00:21.6]} 1-0

[Event "*** Titled Tuesday Blitz"]
[Site "Chess.com"]
[Date "2019.07.02"]
[Round "7"]
[White "EndgameGrinder"]
[Black "Warerman"]
[Result "0-1"]
[WhiteElo "2566"]
[BlackElo "2459"]
[TimeControl "180+2"]
[EndTime "14:37:34 PDT"]
[Termination "Warerman won on time"]

1. e4 {[%clk 0:03:01.9]} 1... c6 {[%clk 0:03:00.4]} 2. d4 {[%clk 0:03:02.2]}
2... d5 {[%clk 0:03:01.6]} 3. Nd2 {[%clk 0:03:03.8]} 3... dxe4 {[%clk
0:03:02.2]} 4. Nxe4 {[%clk 0:03:05.7]} 4... Bf5 {[%clk 0:03:03.2]} 5. Ng3 {[%clk
0:03:06.8]} 5... Bg6 {[%clk 0:03:04]} 6. h4 {[%clk 0:03:08.5]} 6... h6 {[%clk
0:03:04.4]} 7. Nf3 {[%clk 0:03:10.1]} 7... Nd7 {[%clk 0:03:04.6]} 8. h5 {[%clk
0:03:11.6]} 8... Bh7 {[%clk 0:03:05.3]} 9. Bd3 {[%clk 0:03:13.3]} 9... Bxd3
{[%clk 0:03:06.6]} 10. Qxd3 {[%clk 0:03:15.2]} 10... e6 {[%clk 0:03:07.9]} 11.
Bd2 {[%clk 0:03:16.9]} 11... Ngf6 {[%clk 0:03:08.2]} 12. O-O-O {[%clk
0:03:18.3]} 12... Be7 {[%clk 0:03:09.2]} 13. Kb1 {[%clk 0:03:19.3]} 13... O-O
{[%clk 0:03:07.4]} 14. Ne4 {[%clk 0:03:20.3]} 14... Nxe4 {[%clk 0:03:08.2]} 15.
Qxe4 {[%clk 0:03:22.2]} 15... Nf6 {[%clk 0:03:09.6]} 16. Qe2 {[%clk 0:03:23.9]}
16... Qd5 {[%clk 0:03:04.5]} 17. Be3 {[%clk 0:03:25.2]} 17... Ng4 {[%clk
0:02:51]} 18. Rh3 {[%clk 0:03:09.6]} 18... Rad8 {[%clk 0:02:38.3]} 19. Rd3
{[%clk 0:02:33.9]} 19... Bf6 {[%clk 0:02:22.5]} 20. Rg3 {[%clk 0:02:30.5]} 20...
Nxe3 {[%clk 0:02:22.3]} 21. fxe3 {[%clk 0:02:32.4]} 21... Qxh5 {[%clk
0:02:20.6]} 22. e4 {[%clk 0:02:28.4]} 22... e5 {[%clk 0:02:14.1]} 23. Rh3 {[%clk
0:02:10.7]} 23... Qg4 {[%clk 0:02:12.8]} 24. d5 {[%clk 0:01:29.3]} 24... cxd5
{[%clk 0:02:13.7]} 25. Rxd5 {[%clk 0:01:31.2]} 25... Rxd5 {[%clk 0:02:03.5]} 26.
exd5 {[%clk 0:01:33.1]} 26... e4 {[%clk 0:01:57.8]} 27. Ng1 {[%clk 0:01:33.8]}
27... Qxe2 {[%clk 0:01:52.2]} 28. Nxe2 {[%clk 0:01:35.7]} 28... Rd8 {[%clk
0:01:53.4]} 29. c4 {[%clk 0:01:35.9]} 29... b5 {[%clk 0:01:53.8]} 30. b3 {[%clk
0:01:37]} 30... bxc4 {[%clk 0:01:53.8]} 31. bxc4 {[%clk 0:01:38.1]} 31... Rb8+
{[%clk 0:01:55.7]} 32. Rb3 {[%clk 0:01:37.6]} 32... Rc8 {[%clk 0:01:57.6]} 33.
Rb4 {[%clk 0:01:35.9]} 33... Be7 {[%clk 0:01:56.4]} 34. Ra4 {[%clk 0:01:36.8]}
34... Bc5 {[%clk 0:01:55.5]} 35. Kc2 {[%clk 0:01:36.9]} 35... f5 {[%clk
0:01:56]} 36. Ra6 {[%clk 0:01:31.8]} 36... Bb6 {[%clk 0:01:52.9]} 37. Kb3 {[%clk
0:01:29.7]} 37... g5 {[%clk 0:01:51.8]} 38. Ng3 {[%clk 0:01:22.6]} 38... e3
{[%clk 0:01:30.3]} 39. Ne2 {[%clk 0:01:19.9]} 39... f4 {[%clk 0:01:26.8]} 40. a4
{[%clk 0:01:20.8]} 40... Kg7 {[%clk 0:01:10.3]} 41. a5 {[%clk 0:01:21.9]} 41...
Bc5 {[%clk 0:01:11.4]} 42. Ka4 {[%clk 0:00:59.3]} 42... h5 {[%clk 0:01:11.9]}
43. Kb5 {[%clk 0:00:59.9]} 43... h4 {[%clk 0:01:12.8]} 44. Rc6 {[%clk
0:01:00.7]} 44... Rxc6 {[%clk 0:01:09.7]} 45. Kxc6 {[%clk 0:01:02.6]} 45... Bb4
{[%clk 0:01:03.2]} 46. d6 {[%clk 0:00:45.7]} 46... Bxa5 {[%clk 0:01:00.8]} 47.
c5 {[%clk 0:00:43.1]} 47... f3 {[%clk 0:00:54.1]} 48. gxf3 {[%clk 0:00:41.8]}
48... h3 {[%clk 0:00:54.9]} 49. Kd7 {[%clk 0:00:24.1]} 49... h2 {[%clk
0:00:52.8]} 50. Ng3 {[%clk 0:00:23.2]} 50... e2 {[%clk 0:00:45.8]} 51. c6 {[%clk
0:00:16.4]} 51... e1=Q {[%clk 0:00:44.6]} 52. c7 {[%clk 0:00:17.8]} 52... Bxc7
{[%clk 0:00:36.4]} 53. Nf5+ {[%clk 0:00:12.9]} 53... Kf6 {[%clk 0:00:34.7]} 54.
dxc7 {[%clk 0:00:13.9]} 54... Qd2+ {[%clk 0:00:31]} 55. Nd6 {[%clk 0:00:06.9]}
55... Qc1 {[%clk 0:00:21.9]} 0-1

[Event "*** Titled Tuesday Blitz"]
[Site "Chess.com"]
[Date "2019.07.02"]
[Round "7"]
[White "VerdeNotte"]
[Black "chessking2151"]
[Result "0-1"]
[WhiteElo "2821"]
[BlackElo "2612"]
[TimeControl "180+2"]
[EndTime "14:37:37 PDT"]
[Termination "chessking2151 won by resignation"]

1. e4 {[%clk 0:03:01.9]} 1... e5 {[%clk 0:03:00.9]} 2. d4 {[%clk 0:03:02.7]}
2... exd4 {[%clk 0:03:01.4]} 3. Nf3 {[%clk 0:03:04.2]} 3... Nc6 {[%clk
0:02:55.9]} 4. Bc4 {[%clk 0:03:04.3]} 4... Nf6 {[%clk 0:02:55.9]} 5. e5 {[%clk
0:03:05.4]} 5... d5 {[%clk 0:02:55.9]} 6. Bb5 {[%clk 0:03:06.6]} 6... Ne4 {[%clk
0:02:56.7]} 7. Nxd4 {[%clk 0:03:07.2]} 7... Bd7 {[%clk 0:02:55.1]} 8. Bxc6
{[%clk 0:03:07.7]} 8... bxc6 {[%clk 0:02:53.5]} 9. O-O {[%clk 0:03:08.9]} 9...
Bc5 {[%clk 0:02:52.7]} 10. f3 {[%clk 0:03:07.9]} 10... Ng5 {[%clk 0:02:46.4]}
11. Be3 {[%clk 0:03:09.1]} 11... O-O {[%clk 0:02:42]} 12. f4 {[%clk 0:03:10.1]}
12... Ne4 {[%clk 0:02:40.9]} 13. Nc3 {[%clk 0:03:11]} 13... Bb6 {[%clk
0:02:37.2]} 14. Nxe4 {[%clk 0:03:11.2]} 14... dxe4 {[%clk 0:02:37.6]} 15. f5
{[%clk 0:03:10.4]} 15... c5 {[%clk 0:02:32.1]} 16. Ne2 {[%clk 0:03:06.1]} 16...
Bb5 {[%clk 0:02:27.5]} 17. Rf2 {[%clk 0:02:56.7]} 17... Qxd1+ {[%clk 0:02:23.8]}
18. Rxd1 {[%clk 0:02:58.6]} 18... Rad8 {[%clk 0:02:24]} 19. Rxd8 {[%clk
0:02:59.1]} 19... Rxd8 {[%clk 0:02:22.4]} 20. Nc3 {[%clk 0:03:00.7]} 20... Bc6
{[%clk 0:02:19.5]} 21. Kf1 {[%clk 0:02:47.8]} 21... g6 {[%clk 0:02:05.1]} 22. g4
{[%clk 0:02:36.6]} 22... Re8 {[%clk 0:02:00.5]} 23. Bf4 {[%clk 0:02:16.9]} 23...
Ba5 {[%clk 0:01:50.8]} 24. Ke2 {[%clk 0:02:09.1]} 24... Rb8 {[%clk 0:01:47.8]}
25. Nd1 {[%clk 0:01:59.9]} 25... Bb5+ {[%clk 0:01:48.7]} 26. Ke3 {[%clk
0:02:00.1]} 26... c4 {[%clk 0:01:49.4]} 27. Rg2 {[%clk 0:01:26.8]} 27... Rd8
{[%clk 0:01:34.7]} 28. Nc3 {[%clk 0:01:27.3]} 28... Bc6 {[%clk 0:01:27.4]} 29.
Rd2 {[%clk 0:01:25.7]} 29... Rxd2 {[%clk 0:01:01.1]} 30. Kxd2 {[%clk 0:01:26.3]}
30... gxf5 {[%clk 0:01:02.5]} 31. gxf5 {[%clk 0:01:27.1]} 31... Bd7 {[%clk
0:01:04]} 32. f6 {[%clk 0:01:23.8]} 32... Bc6 {[%clk 0:01:03.4]} 33. Be3 {[%clk
0:01:23.5]} 33... a6 {[%clk 0:01:03.6]} 34. Bh6 {[%clk 0:01:17.9]} 34... Bb6
{[%clk 0:00:51]} 35. Ne2 {[%clk 0:01:16.3]} 35... Bd5 {[%clk 0:00:41.4]} 36. c3
{[%clk 0:01:15.6]} 36... c6 {[%clk 0:00:40.3]} 37. Be3 {[%clk 0:01:10.8]} 37...
Bc7 {[%clk 0:00:38.4]} 38. Bd4 {[%clk 0:01:11.9]} 38... c5 {[%clk 0:00:32.5]}
39. Bxc5 {[%clk 0:00:52.2]} 39... Bxe5 {[%clk 0:00:32.9]} 40. Ke3 {[%clk
0:00:43]} 40... Bxh2 {[%clk 0:00:29]} 41. Kd4 {[%clk 0:00:39.2]} 41... Bc6
{[%clk 0:00:27.6]} 42. Be7 {[%clk 0:00:26.9]} 42... h5 {[%clk 0:00:25.9]} 43.
Kc5 {[%clk 0:00:28]} 43... Bd7 {[%clk 0:00:24.4]} 44. Kd5 {[%clk 0:00:25.8]}
44... Bg4 {[%clk 0:00:18.1]} 45. Nd4 {[%clk 0:00:21.3]} 45... e3 {[%clk
0:00:18.9]} 46. Kxc4 {[%clk 0:00:14.9]} 46... e2 {[%clk 0:00:19.1]} 47. Nc2
{[%clk 0:00:13.5]} 47... Bf5 {[%clk 0:00:19.1]} 48. Ne1 {[%clk 0:00:13.7]} 48...
Bg3 {[%clk 0:00:19.3]} 49. Ng2 {[%clk 0:00:06.3]} 49... Be4 {[%clk 0:00:20]} 50.
Bd6 {[%clk 0:00:03.6]} 50... Bxd6 {[%clk 0:00:14.3]} 51. Ne1 {[%clk 0:00:05.3]}
51... Bg3 {[%clk 0:00:13.6]} 52. Kd4 {[%clk 0:00:06.9]} 52... Bxe1 {[%clk
0:00:09.8]} 53. Ke3 {[%clk 0:00:08.8]} 53... Bxc3 {[%clk 0:00:11.4]} 54. Kxe2
{[%clk 0:00:10.4]} 54... Bxb2 {[%clk 0:00:12.6]} 55. Ke3 {[%clk 0:00:12]} 55...
Bd5 {[%clk 0:00:14]} 56. Kf4 {[%clk 0:00:12.1]} 56... Bxf6 {[%clk 0:00:15.5]}
57. a3 {[%clk 0:00:13.3]} 57... Be6 {[%clk 0:00:16.2]} 58. a4 {[%clk 0:00:14.3]}
58... Kg7 {[%clk 0:00:17.4]} 59. Ke4 {[%clk 0:00:15.8]} 59... Kg6 {[%clk
0:00:18.6]} 60. Kf4 {[%clk 0:00:17.2]} 60... Bd7 {[%clk 0:00:18.7]} 61. a5
{[%clk 0:00:18.7]} 61... Bd8 {[%clk 0:00:20.3]} 62. Ke4 {[%clk 0:00:20]} 62...
Bxa5 {[%clk 0:00:21.7]} 63. Kd5 {[%clk 0:00:21.9]} 63... Bc7 {[%clk 0:00:23.1]}
0-1